[Event "Late-Titled-Tuesday-Blitz-March-12-2024"]
[Site "Chess.com"]
[Date "2024.03.12"]
[Round "10"]
[White "grandcoach"]
[Black "Walter_White_Poland"]
[Result "1-0"]
[WhiteElo "2241"]
[BlackElo "2346"]
[TimeControl "180+1"]
[EndTime "15:52:10 PDT"]
[Termination "grandcoach won by resignation"]

1. e4 {[%clk 0:02:52.1]} 1... e5 {[%clk 0:02:55.7]} 2. Nf3 {[%clk 0:02:51.4]}
2... Nc6 {[%clk 0:02:54.9]} 3. d4 {[%clk 0:02:51.5]} 3... exd4 {[%clk
0:02:54.6]} 4. c3 {[%clk 0:02:52.1]} 4... d5 {[%clk 0:02:52.6]} 5. exd5 {[%clk
0:02:51.5]} 5... Qxd5 {[%clk 0:02:52.6]} 6. cxd4 {[%clk 0:02:52.2]} 6... Bg4
{[%clk 0:02:52.2]} 7. Be2 {[%clk 0:02:52.4]} 7... Bb4+ {[%clk 0:02:49.3]} 8. Nc3
{[%clk 0:02:51.3]} 8... Bxf3 {[%clk 0:02:45.2]} 9. Bxf3 {[%clk 0:02:50.3]} 9...
Qc4 {[%clk 0:02:45.7]} 10. Qb3 {[%clk 0:02:26.6]} 10... Qxb3 {[%clk 0:02:42]}
11. axb3 {[%clk 0:02:27.5]} 11... Nxd4 {[%clk 0:02:33.9]} 12. Bxb7 {[%clk
0:02:25.1]} 12... Rb8 {[%clk 0:02:18.5]} 13. Rxa7 {[%clk 0:02:21.3]} 13... Bc5
{[%clk 0:02:14.2]} 14. Ra8 {[%clk 0:02:19]} 14... Rxa8 {[%clk 0:02:13.9]} 15.
Bxa8 {[%clk 0:02:19.9]} 15... Nf6 {[%clk 0:01:57.2]} 16. Bf4 {[%clk 0:01:52]}
16... O-O {[%clk 0:01:55.3]} 17. Bf3 {[%clk 0:01:06.5]} 17... Re8+ {[%clk
0:01:46.8]} 18. Kd1 {[%clk 0:01:01.1]} 18... Nxb3 {[%clk 0:01:07.1]} 19. Bxc7
{[%clk 0:00:50.3]} 19... Bxf2 {[%clk 0:01:04.3]} 20. Rf1 {[%clk 0:00:39.7]}
20... Be3 {[%clk 0:01:00.9]} 21. Nd5 {[%clk 0:00:23.1]} 21... Rc8 {[%clk
0:00:41.4]} 22. Ne7+ {[%clk 0:00:21.7]} 22... Kf8 {[%clk 0:00:40.1]} 23. Nxc8
{[%clk 0:00:22.6]} 1-0

[Event "Late-Titled-Tuesday-Blitz-March-12-2024"]
[Site "Chess.com"]
[Date "2024.03.12"]
[Round "10"]
[White "Herman-NY"]
[Black "scrambleyourbrain"]
[Result "1-0"]
[WhiteElo "2548"]
[BlackElo "2409"]
[TimeControl "180+1"]
[EndTime "15:52:13 PDT"]
[Termination "Herman-NY won by resignation"]

1. e4 {[%clk 0:03:00.9]} 1... e5 {[%clk 0:02:59.6]} 2. Nf3 {[%clk 0:03:00.9]}
2... Nc6 {[%clk 0:02:59.3]} 3. Bc4 {[%clk 0:03:00.1]} 3... Bc5 {[%clk 0:02:59]}
4. c3 {[%clk 0:03:00.1]} 4... Nf6 {[%clk 0:02:59.1]} 5. d3 {[%clk 0:03:00.7]}
5... O-O {[%clk 0:02:57.9]} 6. Bg5 {[%clk 0:02:58.3]} 6... Be7 {[%clk
0:02:57.3]} 7. Nbd2 {[%clk 0:02:57.8]} 7... h6 {[%clk 0:02:57.2]} 8. Bh4 {[%clk
0:02:57.9]} 8... d6 {[%clk 0:02:52.1]} 9. a4 {[%clk 0:02:53.7]} 9... a6 {[%clk
0:02:47.6]} 10. Bg3 {[%clk 0:02:45.6]} 10... Be6 {[%clk 0:02:41.3]} 11. O-O
{[%clk 0:02:37]} 11... Bxc4 {[%clk 0:02:21.4]} 12. Nxc4 {[%clk 0:02:37.1]} 12...
Nh5 {[%clk 0:02:20.6]} 13. Nfxe5 {[%clk 0:02:26]} 13... dxe5 {[%clk 0:02:03.2]}
14. Qxh5 {[%clk 0:02:24.7]} 14... Qxd3 {[%clk 0:02:03.4]} 15. Nxe5 {[%clk
0:02:20]} 15... Nxe5 {[%clk 0:01:43.9]} 16. Qxe5 {[%clk 0:02:12.4]} 16... Bd6
{[%clk 0:01:43.7]} 17. Qd5 {[%clk 0:01:43.8]} 17... Qxd5 {[%clk 0:01:43.4]} 18.
exd5 {[%clk 0:01:44.7]} 18... Bxg3 {[%clk 0:01:43.8]} 19. hxg3 {[%clk
0:01:45.3]} 19... Rad8 {[%clk 0:01:44]} 20. Rad1 {[%clk 0:01:45]} 20... Rd6
{[%clk 0:01:44.1]} 21. Rd4 {[%clk 0:01:39.5]} 21... Rfd8 {[%clk 0:01:44.3]} 22.
Rfd1 {[%clk 0:01:39.3]} 22... Kf8 {[%clk 0:01:40.5]} 23. a5 {[%clk 0:01:32.9]}
23... Ke7 {[%clk 0:01:34.5]} 24. g4 {[%clk 0:01:32.6]} 24... Kf6 {[%clk
0:01:31.5]} 25. f4 {[%clk 0:01:30.5]} 25... g6 {[%clk 0:01:30.9]} 26. Kf2 {[%clk
0:01:30.3]} 26... Kg7 {[%clk 0:01:30.1]} 27. c4 {[%clk 0:01:01.9]} 27... c6
{[%clk 0:01:29.8]} 28. b4 {[%clk 0:00:38.4]} 28... g5 {[%clk 0:01:19.5]} 29.
dxc6 {[%clk 0:00:34.6]} 29... Rxd4 {[%clk 0:00:48.6]} 30. Rxd4 {[%clk
0:00:35.5]} 30... Rxd4 {[%clk 0:00:48.9]} 31. cxb7 {[%clk 0:00:34.8]} 31...
Rxf4+ {[%clk 0:00:43]} 32. Kg3 {[%clk 0:00:34.5]} 32... Rxc4 {[%clk 0:00:42.9]}
33. b8=Q {[%clk 0:00:34.8]} 33... Rc6 {[%clk 0:00:43.1]} 34. Qb7 {[%clk
0:00:34.3]} 1-0

[Event "Late-Titled-Tuesday-Blitz-March-12-2024"]
[Site "Chess.com"]
[Date "2024.03.12"]
[Round "10"]
[White "CaspiIsrael"]
[Black "Zohid6"]
[Result "1-0"]
[WhiteElo "2709"]
[BlackElo "2878"]
[TimeControl "180+1"]
[EndTime "15:52:19 PDT"]
[Termination "CaspiIsrael won by resignation"]

1. d4 {[%clk 0:03:00.4]} 1... e6 {[%clk 0:02:56]} 2. e4 {[%clk 0:02:59.2]} 2...
d5 {[%clk 0:02:56.2]} 3. Nd2 {[%clk 0:02:59.8]} 3... h6 {[%clk 0:02:54.4]} 4.
Ngf3 {[%clk 0:02:59.7]} 4... Nf6 {[%clk 0:02:54.5]} 5. e5 {[%clk 0:03:00]} 5...
Nfd7 {[%clk 0:02:54.6]} 6. c3 {[%clk 0:03:00.7]} 6... c5 {[%clk 0:02:54.9]} 7.
Bd3 {[%clk 0:03:01.5]} 7... Nc6 {[%clk 0:02:55.5]} 8. O-O {[%clk 0:03:01.7]}
8... g5 {[%clk 0:02:55.7]} 9. a3 {[%clk 0:02:56.8]} 9... Bg7 {[%clk 0:02:47]}
10. b4 {[%clk 0:02:56.2]} 10... g4 {[%clk 0:02:40.6]} 11. b5 {[%clk 0:02:55.6]}
11... gxf3 {[%clk 0:02:36.5]} 12. bxc6 {[%clk 0:02:55.3]} 12... bxc6 {[%clk
0:02:36.3]} 13. Nxf3 {[%clk 0:02:47.5]} 13... Rb8 {[%clk 0:02:21.3]} 14. Re1
{[%clk 0:02:44.4]} 14... Qa5 {[%clk 0:02:20.5]} 15. Bd2 {[%clk 0:02:43]} 15...
Ba6 {[%clk 0:02:06.1]} 16. Bc2 {[%clk 0:02:36]} 16... Bc4 {[%clk 0:01:59.8]} 17.
a4 {[%clk 0:02:32.8]} 17... Bf8 {[%clk 0:01:53.5]} 18. Rb1 {[%clk 0:02:22.7]}
18... Rb6 {[%clk 0:01:50.2]} 19. g3 {[%clk 0:02:20.3]} 19... Be7 {[%clk
0:01:49.4]} 20. h4 {[%clk 0:02:20.1]} 20... Kd8 {[%clk 0:01:44.7]} 21. Nh2
{[%clk 0:02:18.6]} 21... Kc7 {[%clk 0:01:38.8]} 22. Ng4 {[%clk 0:02:18.4]} 22...
h5 {[%clk 0:01:39.1]} 23. Ne3 {[%clk 0:02:17.8]} 23... Rxb1 {[%clk 0:01:34.6]}
24. Bxb1 {[%clk 0:02:14.3]} 24... Nb6 {[%clk 0:01:29.7]} 25. Bc2 {[%clk
0:02:10.6]} 25... Kb7 {[%clk 0:01:19.5]} 26. Qf3 {[%clk 0:02:04.9]} 26... Rf8
{[%clk 0:01:19.2]} 27. Nxc4 {[%clk 0:02:00]} 27... Nxc4 {[%clk 0:01:20.1]} 28.
Rb1+ {[%clk 0:02:00]} 28... Ka8 {[%clk 0:00:38.4]} 29. Be1 {[%clk 0:01:55.6]}
29... Na3 {[%clk 0:00:31]} 30. c4 {[%clk 0:01:46.9]} 30... Qxe1+ {[%clk
0:00:26.9]} 31. Rxe1 {[%clk 0:01:46.5]} 31... Nxc2 {[%clk 0:00:27.8]} 32. Rb1
{[%clk 0:01:39.1]} 32... Nxd4 {[%clk 0:00:27.3]} 33. Qxh5 {[%clk 0:01:39.2]}
33... dxc4 {[%clk 0:00:16.3]} 34. Rc1 {[%clk 0:01:31.2]} 34... Kb7 {[%clk
0:00:14.1]} 35. Rxc4 {[%clk 0:01:30.2]} 35... Ka6 {[%clk 0:00:15]} 36. Kg2
{[%clk 0:01:29.8]} 36... f5 {[%clk 0:00:11.8]} 37. exf6 {[%clk 0:01:27.5]} 37...
Rxf6 {[%clk 0:00:11.2]} 38. Qe8 {[%clk 0:01:26.4]} 1-0

[Event "Late-Titled-Tuesday-Blitz-March-12-2024"]
[Site "Chess.com"]
[Date "2024.03.12"]
[Round "10"]
[White "Jospem"]
[Black "DavidGavrilescu18"]
[Result "1/2-1/2"]
[WhiteElo "3094"]
[BlackElo "2780"]
[TimeControl "180+1"]
[EndTime "15:52:21 PDT"]
[Termination "Game drawn by repetition"]

1. e4 {[%clk 0:03:00.9]} 1... e6 {[%clk 0:02:57.3]} 2. d4 {[%clk 0:03:01.2]}
2... d5 {[%clk 0:02:58]} 3. e5 {[%clk 0:03:01.9]} 3... c5 {[%clk 0:02:58.3]} 4.
c3 {[%clk 0:03:02.5]} 4... Nc6 {[%clk 0:02:59]} 5. Nf3 {[%clk 0:03:03.3]} 5...
Bd7 {[%clk 0:02:59.4]} 6. Be2 {[%clk 0:03:02.7]} 6... Nge7 {[%clk 0:02:59.6]} 7.
O-O {[%clk 0:03:03.3]} 7... Nf5 {[%clk 0:03:00]} 8. Be3 {[%clk 0:03:04.1]} 8...
Be7 {[%clk 0:02:38.8]} 9. Bd3 {[%clk 0:03:03]} 9... cxd4 {[%clk 0:02:37]} 10.
cxd4 {[%clk 0:03:02.3]} 10... O-O {[%clk 0:02:35.7]} 11. Bxf5 {[%clk 0:03:02.1]}
11... exf5 {[%clk 0:02:35.7]} 12. Nc3 {[%clk 0:03:03]} 12... Be6 {[%clk
0:02:36.1]} 13. a3 {[%clk 0:03:03.2]} 13... Rc8 {[%clk 0:02:35.1]} 14. Rc1
{[%clk 0:03:01.2]} 14... h6 {[%clk 0:02:33.7]} 15. Ne1 {[%clk 0:02:56.7]} 15...
Na5 {[%clk 0:02:26.1]} 16. Rc2 {[%clk 0:02:56.4]} 16... Nc4 {[%clk 0:02:22.7]}
17. Bc1 {[%clk 0:02:56.7]} 17... a6 {[%clk 0:02:22.2]} 18. Nd3 {[%clk
0:02:51.6]} 18... Rc6 {[%clk 0:02:10]} 19. Nf4 {[%clk 0:02:49.3]} 19... Qd7
{[%clk 0:02:01]} 20. Qf3 {[%clk 0:02:48]} 20... Rd8 {[%clk 0:01:32.8]} 21. Nh5
{[%clk 0:02:39.8]} 21... Kh7 {[%clk 0:01:21.9]} 22. Nf4 {[%clk 0:02:31.9]} 22...
Bg5 {[%clk 0:01:16.9]} 23. g3 {[%clk 0:02:31]} 23... Rdc8 {[%clk 0:01:13.4]} 24.
Nxe6 {[%clk 0:02:22.5]} 24... fxe6 {[%clk 0:01:03.3]} 25. Bxg5 {[%clk
0:02:22.7]} 25... hxg5 {[%clk 0:01:04.2]} 26. Qh5+ {[%clk 0:02:23.1]} 26... Kg8
{[%clk 0:01:04.7]} 27. Qxg5 {[%clk 0:02:21.7]} 27... Nxa3 {[%clk 0:01:04.9]} 28.
Rcc1 {[%clk 0:02:11.7]} 28... Nb5 {[%clk 0:01:02.3]} 29. Ne2 {[%clk 0:02:11.9]}
29... Rc2 {[%clk 0:00:57.1]} 30. Qe3 {[%clk 0:02:02.4]} 30... Rxc1 {[%clk
0:00:54.9]} 31. Rxc1 {[%clk 0:02:03.3]} 31... Rxc1+ {[%clk 0:00:54.9]} 32. Qxc1
{[%clk 0:02:04.2]} 32... Qc7 {[%clk 0:00:54.7]} 33. Qg5 {[%clk 0:02:03.5]} 33...
Qc2 {[%clk 0:00:49.4]} 34. Nf4 {[%clk 0:01:57.3]} 34... Nxd4 {[%clk 0:00:49.2]}
35. Qd8+ {[%clk 0:01:46.4]} 35... Kh7 {[%clk 0:00:49.3]} 36. Qh4+ {[%clk
0:01:46.7]} 36... Kg8 {[%clk 0:00:49.7]} 37. Qh5 {[%clk 0:01:47.6]} 37... Qe4
{[%clk 0:00:35.3]} 38. h4 {[%clk 0:01:38.7]} 38... Nf3+ {[%clk 0:00:33]} 39. Kg2
{[%clk 0:01:37.9]} 39... Nxe5+ {[%clk 0:00:21.9]} 40. f3 {[%clk 0:01:35]} 40...
Qc2+ {[%clk 0:00:21.9]} 41. Kh3 {[%clk 0:01:34.8]} 41... Qd1 {[%clk 0:00:19.7]}
42. Qe8+ {[%clk 0:01:34.2]} 42... Kh7 {[%clk 0:00:20.1]} 43. Qh5+ {[%clk
0:01:24.4]} 43... Kg8 {[%clk 0:00:20.4]} 44. Qe8+ {[%clk 0:01:22.6]} 44... Kh7
{[%clk 0:00:20.7]} 45. Qh5+ {[%clk 0:01:19.9]} 45... Kg8 {[%clk 0:00:20.9]}
1/2-1/2

[Event "Late-Titled-Tuesday-Blitz-March-12-2024"]
[Site "Chess.com"]
[Date "2024.03.12"]
[Round "10"]
[White "Boorchess"]
[Black "The_Straightforward_Rook"]
[Result "0-1"]
[WhiteElo "2541"]
[BlackElo "2467"]
[TimeControl "180+1"]
[EndTime "15:52:23 PDT"]
[Termination "The_Straightforward_Rook won by resignation"]

1. d4 {[%clk 0:03:00.9]} 1... Nf6 {[%clk 0:02:57.9]} 2. c4 {[%clk 0:03:00.4]}
2... c5 {[%clk 0:02:58.5]} 3. d5 {[%clk 0:03:00]} 3... b5 {[%clk 0:02:59]} 4.
cxb5 {[%clk 0:02:59.7]} 4... a6 {[%clk 0:02:59.6]} 5. f3 {[%clk 0:02:59.5]} 5...
e6 {[%clk 0:02:58.8]} 6. e4 {[%clk 0:02:59.7]} 6... c4 {[%clk 0:02:59.5]} 7.
Bxc4 {[%clk 0:02:57.9]} 7... axb5 {[%clk 0:02:56.4]} 8. Bxb5 {[%clk 0:02:57.7]}
8... Bc5 {[%clk 0:02:57.1]} 9. Qe2 {[%clk 0:02:50.6]} 9... Qb6 {[%clk
0:02:53.8]} 10. Nh3 {[%clk 0:02:48.7]} 10... O-O {[%clk 0:02:51.3]} 11. dxe6
{[%clk 0:02:39.8]} 11... fxe6 {[%clk 0:02:50.4]} 12. Nc3 {[%clk 0:02:19.3]}
12... Nc6 {[%clk 0:02:45.1]} 13. Bxc6 {[%clk 0:02:12.8]} 13... Qxc6 {[%clk
0:02:44]} 14. Be3 {[%clk 0:02:09.9]} 14... Ba6 {[%clk 0:02:43.7]} 15. Qf2 {[%clk
0:02:07.6]} 15... Bb4 {[%clk 0:02:42.7]} 16. Rc1 {[%clk 0:02:02.1]} 16... Nxe4
{[%clk 0:02:41.9]} 17. Qh4 {[%clk 0:01:49.9]} 17... Nxc3 {[%clk 0:02:37.5]} 18.
bxc3 {[%clk 0:01:49.2]} 18... Bxc3+ {[%clk 0:02:38.1]} 19. Kf2 {[%clk
0:01:47.4]} 19... Bf6 {[%clk 0:02:35.4]} 20. Qxf6 {[%clk 0:01:28.5]} 20... gxf6
{[%clk 0:02:25.8]} 21. Rxc6 {[%clk 0:01:27.4]} 21... dxc6 {[%clk 0:02:26.7]} 22.
a4 {[%clk 0:01:23.3]} 22... Bc4 {[%clk 0:02:25.6]} 23. Ra1 {[%clk 0:01:12.7]}
23... Ra6 {[%clk 0:02:22.3]} 24. a5 {[%clk 0:01:12.1]} 24... Rb8 {[%clk
0:02:15.3]} 25. Rc1 {[%clk 0:01:06.1]} 25... Bd5 {[%clk 0:02:13.1]} 26. Bb6
{[%clk 0:01:01.6]} 26... Rbxb6 {[%clk 0:02:13.1]} 27. axb6 {[%clk 0:01:01.4]}
27... Rxb6 {[%clk 0:02:14]} 28. Nf4 {[%clk 0:01:01.2]} 28... Kf7 {[%clk
0:02:11.7]} 29. g4 {[%clk 0:01:00.8]} 29... Rb3 {[%clk 0:02:09.5]} 30. Nxd5
{[%clk 0:01:00.2]} 30... cxd5 {[%clk 0:02:09.8]} 31. Rc7+ {[%clk 0:00:59.1]}
31... Kg6 {[%clk 0:02:09.8]} 32. Re7 {[%clk 0:00:58.5]} 32... e5 {[%clk
0:02:09.4]} 33. h4 {[%clk 0:00:58.5]} 33... d4 {[%clk 0:02:09.6]} 34. f4 {[%clk
0:00:49.2]} 34... Re3 {[%clk 0:02:05.3]} 35. f5+ {[%clk 0:00:48.4]} 35... Kh6
{[%clk 0:02:05.6]} 36. Rf7 {[%clk 0:00:47.3]} 36... Re4 {[%clk 0:02:02.9]} 37.
Kg3 {[%clk 0:00:44.6]} 37... d3 {[%clk 0:02:01.4]} 38. Rxf6+ {[%clk 0:00:40.4]}
38... Kg7 {[%clk 0:02:01.3]} 39. Rd6 {[%clk 0:00:39.7]} 39... Re3+ {[%clk
0:01:54.3]} 40. Kf2 {[%clk 0:00:39.3]} 40... Re2+ {[%clk 0:01:54.1]} 41. Kf3
{[%clk 0:00:31]} 41... e4+ {[%clk 0:01:54]} 42. Kf4 {[%clk 0:00:31.4]} 42... d2
{[%clk 0:01:50.2]} 43. g5 {[%clk 0:00:30]} 43... e3 {[%clk 0:01:49.7]} 44. Rd7+
{[%clk 0:00:25.6]} 44... Kf8 {[%clk 0:01:49.6]} 45. f6 {[%clk 0:00:20.2]} 45...
Re1 {[%clk 0:01:48.5]} 46. Rd8+ {[%clk 0:00:10.2]} 46... Kf7 {[%clk 0:01:47.9]}
47. h5 {[%clk 0:00:08.7]} 47... d1=Q {[%clk 0:01:46.6]} 48. Rxd1 {[%clk
0:00:07.9]} 48... Rxd1 {[%clk 0:01:46.1]} 49. Kxe3 {[%clk 0:00:08.5]} 49... Rh1
{[%clk 0:01:45.5]} 50. Kf4 {[%clk 0:00:07]} 50... Rxh5 {[%clk 0:01:45.6]} 51.
Kg4 {[%clk 0:00:07.3]} 51... Rh1 {[%clk 0:01:45.5]} 52. Kf5 {[%clk 0:00:07.6]}
52... Rf1+ {[%clk 0:01:45.5]} 53. Kg4 {[%clk 0:00:07.9]} 53... Kg6 {[%clk
0:01:45.4]} 0-1

[Event "Late-Titled-Tuesday-Blitz-March-12-2024"]
[Site "Chess.com"]
[Date "2024.03.12"]
[Round "10"]
[White "RandomNoob04"]
[Black "Schattman"]
[Result "1-0"]
[WhiteElo "2660"]
[BlackElo "2482"]
[TimeControl "180+1"]
[EndTime "15:52:24 PDT"]
[Termination "RandomNoob04 won on time"]

1. e4 {[%clk 0:03:00.9]} 1... c5 {[%clk 0:03:00]} 2. d4 {[%clk 0:03:01.3]} 2...
cxd4 {[%clk 0:02:58.9]} 3. c3 {[%clk 0:03:02]} 3... dxc3 {[%clk 0:02:59.4]} 4.
Nxc3 {[%clk 0:03:02.9]} 4... Nc6 {[%clk 0:02:59.3]} 5. Nf3 {[%clk 0:03:03.6]}
5... d6 {[%clk 0:02:59.6]} 6. Bc4 {[%clk 0:03:04.3]} 6... a6 {[%clk 0:02:55.6]}
7. O-O {[%clk 0:03:04.9]} 7... Nf6 {[%clk 0:02:41]} 8. Bf4 {[%clk 0:03:05.5]}
8... Bg4 {[%clk 0:02:33.3]} 9. h3 {[%clk 0:03:06]} 9... Bh5 {[%clk 0:02:21.4]}
10. g4 {[%clk 0:03:05.8]} 10... Bg6 {[%clk 0:02:20.8]} 11. Qe2 {[%clk
0:03:06.5]} 11... e5 {[%clk 0:02:19.9]} 12. Rfd1 {[%clk 0:03:07.1]} 12... Qa5
{[%clk 0:01:56.5]} 13. Bg5 {[%clk 0:03:02.3]} 13... Be7 {[%clk 0:01:50.3]} 14.
a3 {[%clk 0:02:58.4]} 14... Rc8 {[%clk 0:01:44.9]} 15. Bxf6 {[%clk 0:02:51]}
15... Bxf6 {[%clk 0:01:38.1]} 16. Rxd6 {[%clk 0:02:35.7]} 16... O-O {[%clk
0:01:31]} 17. Nd5 {[%clk 0:02:32.6]} 17... Nd4 {[%clk 0:01:24.7]} 18. Nxd4
{[%clk 0:02:21.4]} 18... exd4 {[%clk 0:01:24.9]} 19. b4 {[%clk 0:02:03.1]} 19...
Qa4 {[%clk 0:01:12.1]} 20. Nxf6+ {[%clk 0:01:56.4]} 20... gxf6 {[%clk
0:01:11.8]} 21. Rxf6 {[%clk 0:01:57.3]} 21... d3 {[%clk 0:01:02.5]} 22. Qxd3
{[%clk 0:01:52.9]} 22... Rfd8 {[%clk 0:00:55.9]} 23. Bd5 {[%clk 0:01:48.5]}
23... Rc7 {[%clk 0:00:45.1]} 24. Bxf7+ {[%clk 0:01:33.1]} 24... Rxf7 {[%clk
0:00:34.4]} 25. Qxd8+ {[%clk 0:01:32.7]} 25... Kg7 {[%clk 0:00:35]} 26. Rxf7+
{[%clk 0:01:33]} 26... Bxf7 {[%clk 0:00:35.1]} 27. Qd4+ {[%clk 0:01:31.4]} 27...
Kg6 {[%clk 0:00:34.7]} 28. h4 {[%clk 0:01:28.4]} 28... h6 {[%clk 0:00:34.7]} 29.
Rc1 {[%clk 0:01:12.5]} 29... Qb3 {[%clk 0:00:31.4]} 30. Rc7 {[%clk 0:01:05.3]}
30... Qd1+ {[%clk 0:00:28.8]} 31. Qxd1 {[%clk 0:01:04.9]} 1-0

[Event "Late-Titled-Tuesday-Blitz-March-12-2024"]
[Site "Chess.com"]
[Date "2024.03.12"]
[Round "10"]
[White "Incognizance"]
[Black "Kostukov_Alex"]
[Result "0-1"]
[WhiteElo "1843"]
[BlackElo "2277"]
[TimeControl "180+1"]
[EndTime "15:52:24 PDT"]
[Termination "Kostukov_Alex won by resignation"]

1. d4 {[%clk 0:03:00.9]} 1... g6 {[%clk 0:02:57.8]} 2. c4 {[%clk 0:03:01.1]}
2... Bg7 {[%clk 0:02:45.1]} 3. Nc3 {[%clk 0:03:01.2]} 3... d6 {[%clk 0:02:45.1]}
4. e4 {[%clk 0:03:01.4]} 4... e5 {[%clk 0:02:39.1]} 5. d5 {[%clk 0:02:57.7]}
5... f5 {[%clk 0:02:36.5]} 6. f3 {[%clk 0:02:50.6]} 6... Nf6 {[%clk 0:02:36]} 7.
Bd3 {[%clk 0:02:45.9]} 7... O-O {[%clk 0:02:35.3]} 8. Nge2 {[%clk 0:02:44.9]}
8... a5 {[%clk 0:02:27.3]} 9. a4 {[%clk 0:02:44.2]} 9... Na6 {[%clk 0:02:17.7]}
10. O-O {[%clk 0:02:37.7]} 10... Nc5 {[%clk 0:02:12.1]} 11. Be3 {[%clk
0:02:31.7]} 11... Bd7 {[%clk 0:01:58.2]} 12. Bxc5 {[%clk 0:02:28.3]} 12... dxc5
{[%clk 0:01:58.4]} 13. Qb3 {[%clk 0:02:14.9]} 13... b6 {[%clk 0:01:22.8]} 14.
Nb5 {[%clk 0:02:14.8]} 14... Bxb5 {[%clk 0:01:15.6]} 15. Qxb5 {[%clk 0:02:04.1]}
15... Bh6 {[%clk 0:00:47.1]} 16. exf5 {[%clk 0:01:43]} 16... Be3+ {[%clk
0:00:44.9]} 17. Kh1 {[%clk 0:01:43.6]} 17... gxf5 {[%clk 0:00:43.9]} 18. Bxf5
{[%clk 0:01:42.1]} 18... Kh8 {[%clk 0:00:36.5]} 19. Qb3 {[%clk 0:01:40.2]} 19...
Bh6 {[%clk 0:00:30.2]} 20. Be6 {[%clk 0:01:40.1]} 20... Nh5 {[%clk 0:00:25.6]}
21. Rae1 {[%clk 0:01:19.1]} 21... Qh4 {[%clk 0:00:24.2]} 22. f4 {[%clk
0:00:59.2]} 22... Bxf4 {[%clk 0:00:17.3]} 23. Nxf4 {[%clk 0:00:58.4]} 23... Rxf4
{[%clk 0:00:16.5]} 24. Rxf4 {[%clk 0:00:49.3]} 24... Qxe1+ {[%clk 0:00:15]} 0-1

[Event "Late-Titled-Tuesday-Blitz-March-12-2024"]
[Site "Chess.com"]
[Date "2024.03.12"]
[Round "10"]
[White "Lennis93"]
[Black "artin10862"]
[Result "0-1"]
[WhiteElo "2709"]
[BlackElo "2897"]
[TimeControl "180+1"]
[EndTime "15:52:31 PDT"]
[Termination "artin10862 won on time"]

1. d4 {[%clk 0:02:54.9]} 1... Nf6 {[%clk 0:02:59.8]} 2. Nf3 {[%clk 0:02:55.1]}
2... g6 {[%clk 0:02:59.9]} 3. c4 {[%clk 0:02:55.4]} 3... Bg7 {[%clk 0:03:00.2]}
4. Nc3 {[%clk 0:02:56.1]} 4... d5 {[%clk 0:02:59.6]} 5. Bf4 {[%clk 0:02:55.3]}
5... O-O {[%clk 0:02:57.2]} 6. Rc1 {[%clk 0:02:55.5]} 6... dxc4 {[%clk
0:02:48.9]} 7. e3 {[%clk 0:02:54.7]} 7... c5 {[%clk 0:02:48.9]} 8. dxc5 {[%clk
0:02:51.9]} 8... Qa5 {[%clk 0:02:45.6]} 9. Bxc4 {[%clk 0:02:50.8]} 9... Ne4
{[%clk 0:02:45.5]} 10. Be5 {[%clk 0:02:34.9]} 10... Rd8 {[%clk 0:02:18.3]} 11.
Qb3 {[%clk 0:02:30.8]} 11... Nxc5 {[%clk 0:02:18.3]} 12. Bxf7+ {[%clk
0:02:29.7]} 12... Kf8 {[%clk 0:02:18.5]} 13. Bxg7+ {[%clk 0:02:09]} 13... Kxg7
{[%clk 0:02:19.4]} 14. Qc4 {[%clk 0:02:03.4]} 14... Nd3+ {[%clk 0:02:17.2]} 15.
Ke2 {[%clk 0:02:02.2]} 15... b6 {[%clk 0:02:01.9]} 16. b4 {[%clk 0:01:46.6]}
16... Nxb4 {[%clk 0:01:57.2]} 17. Qb3 {[%clk 0:01:31.8]} 17... Nd7 {[%clk
0:01:51.8]} 18. Bc4 {[%clk 0:01:19.8]} 18... Ba6 {[%clk 0:01:51.4]} 19. Ne4
{[%clk 0:01:05.9]} 19... Rac8 {[%clk 0:01:43.4]} 20. Ned2 {[%clk 0:00:24.3]}
20... Nc5 {[%clk 0:01:36.1]} 21. Qb2+ {[%clk 0:00:24.4]} 21... Kh6 {[%clk
0:01:36.8]} 22. Qe5 {[%clk 0:00:19]} 22... Bxc4+ {[%clk 0:01:17.8]} 23. Rxc4
{[%clk 0:00:18.9]} 23... Nc6 {[%clk 0:01:18.3]} 24. Rg4 {[%clk 0:00:18.1]} 24...
Nxe5 {[%clk 0:01:17.9]} 25. Rh4+ {[%clk 0:00:12.2]} 25... Kg7 {[%clk 0:01:17.1]}
26. Nxe5 {[%clk 0:00:10.9]} 26... Qxd2+ {[%clk 0:01:15.1]} 27. Kf3 {[%clk
0:00:09.7]} 27... Qd5+ {[%clk 0:01:15.6]} 28. e4 {[%clk 0:00:09.6]} 28... Qxe5
{[%clk 0:01:15.3]} 29. g3 {[%clk 0:00:09.4]} 29... g5 {[%clk 0:01:13.2]} 30. Rg4
{[%clk 0:00:09]} 30... h5 {[%clk 0:01:13.2]} 31. Kg2 {[%clk 0:00:08.8]} 31...
hxg4 {[%clk 0:01:13.2]} 32. Re1 {[%clk 0:00:09.7]} 32... Nd3 {[%clk 0:01:09.3]}
33. Re3 {[%clk 0:00:07.8]} 33... Qf6 {[%clk 0:01:09]} 34. Re2 {[%clk 0:00:02.3]}
34... Qf3+ {[%clk 0:01:08.6]} 0-1

[Event "Late-Titled-Tuesday-Blitz-March-12-2024"]
[Site "Chess.com"]
[Date "2024.03.12"]
[Round "10"]
[White "djano"]
[Black "Meri-Arabidze"]
[Result "1-0"]
[WhiteElo "2600"]
[BlackElo "2684"]
[TimeControl "180+1"]
[EndTime "15:52:41 PDT"]
[Termination "djano won on time"]

1. e4 {[%clk 0:03:00.2]} 1... e5 {[%clk 0:03:00.3]} 2. Nf3 {[%clk 0:02:59.2]}
2... Nc6 {[%clk 0:03:01]} 3. d4 {[%clk 0:02:59.7]} 3... exd4 {[%clk 0:03:00.6]}
4. Nxd4 {[%clk 0:03:00.6]} 4... Bc5 {[%clk 0:03:00.8]} 5. Nb3 {[%clk 0:02:58.3]}
5... Bb6 {[%clk 0:03:00.9]} 6. Nc3 {[%clk 0:02:58.8]} 6... Nf6 {[%clk
0:03:01.1]} 7. Bg5 {[%clk 0:02:57.5]} 7... h6 {[%clk 0:03:00]} 8. Bh4 {[%clk
0:02:56.3]} 8... O-O {[%clk 0:03:00.2]} 9. Qe2 {[%clk 0:02:54.1]} 9... Re8
{[%clk 0:02:53.4]} 10. O-O-O {[%clk 0:02:52.8]} 10... d6 {[%clk 0:02:53.6]} 11.
f3 {[%clk 0:02:49.5]} 11... Ne5 {[%clk 0:02:43.3]} 12. Kb1 {[%clk 0:02:41.9]}
12... Be6 {[%clk 0:02:42.7]} 13. Nd4 {[%clk 0:02:40.2]} 13... Ng6 {[%clk
0:02:27.2]} 14. Bf2 {[%clk 0:02:35.8]} 14... Bd7 {[%clk 0:02:18.7]} 15. g4
{[%clk 0:02:31.8]} 15... d5 {[%clk 0:02:12.3]} 16. Nf5 {[%clk 0:02:24.4]} 16...
dxe4 {[%clk 0:02:04.7]} 17. fxe4 {[%clk 0:02:11.7]} 17... Bxf2 {[%clk
0:02:02.9]} 18. Qxf2 {[%clk 0:02:12.1]} 18... Nxg4 {[%clk 0:01:57.8]} 19. Qg3
{[%clk 0:02:06.4]} 19... N4e5 {[%clk 0:01:34.5]} 20. h4 {[%clk 0:02:03.9]} 20...
h5 {[%clk 0:01:18]} 21. Be2 {[%clk 0:02:03.8]} 21... c6 {[%clk 0:00:47.1]} 22.
Bxh5 {[%clk 0:01:57.5]} 22... Qf6 {[%clk 0:00:47.3]} 23. Rdf1 {[%clk 0:01:52.5]}
23... Bxf5 {[%clk 0:00:42.8]} 24. exf5 {[%clk 0:01:45.7]} 24... Ne7 {[%clk
0:00:41.9]} 25. Ne4 {[%clk 0:01:46.1]} 25... Qh6 {[%clk 0:00:37.8]} 26. Rhg1
{[%clk 0:01:25.2]} 26... Nd5 {[%clk 0:00:22.1]} 27. Nd6 {[%clk 0:01:06.3]} 27...
Re7 {[%clk 0:00:12.2]} 28. f6 {[%clk 0:01:03.7]} 28... Re6 {[%clk 0:00:03.6]}
29. Nf5 {[%clk 0:00:54.3]} 29... Qxf6 {[%clk 0:00:02.6]} 30. Nxg7 {[%clk
0:00:54.6]} 30... Qxf1+ {[%clk 0:00:01.4]} 31. Rxf1 {[%clk 0:00:55.5]} 31... Ng6
{[%clk 0:00:01.5]} 32. Nxe6 {[%clk 0:00:55.1]} 1-0